[Event "1st Bangalore GM-Open-A 2024"]
[Site "Bangalore"]
[Date "2024.01.21"]
[Round "6.20"]
[White "Neelotpal, Das"]
[Black "De Silva, L M S T"]
[Result "1-0"]
[ECO "D38"]
[WhiteElo "2329"]
[BlackElo "2398"]
[Annotator "RC"]
[PlyCount "135"]
[EventDate "2024.01.20"]
[EventType "swiss"]
[EventCountry "IND"]
[SourceTitle "playchess.com"]
[Source "ChessBase"]
[SourceQuality "1"]
[TimeControl "5400+30"]

1. d4 {[%emt 0:00:02]} Nf6 {[%emt 0:01:15]} 2. c4 {[%emt 0:00:06]} e6 {[%emt 0:00:05]} 3. Nf3 {[%emt 0:00:03]} d5 {[%emt 0:00:10]} 4. Nc3 {[%emt 0:00:08]} Bb4 {[%emt 0:00:11]} 5. cxd5 {[%emt 0:00:05]} exd5 {[%emt 0:00:09]} 6. Bg5 {[%emt 0:00:04]} h6 {[%emt 0:00:51]} 7. Bh4 {[%emt 0:00:06]} O-O {[%emt 0:00:48]} 8. e3 {[%emt 0:00:32]} Bf5 {[%emt 0:00:27]} 9. Be2 {[%emt 0:01:07]} Nbd7 {[%emt 0:00:47]} 10. Qb3 {[%emt 0:11:36]} Qe7 {[%emt 0:01:40]} 11. O-O {[%emt 0:03:56]} Bxc3 {[%emt 0:02:45]} 12. bxc3 {[%emt 0:04:10]} c5 {[%emt 0:05:26]} 13. Qxb7 {[%emt 0:11:35]} g5 {[%emt 0:13:06]} 14. Bg3 {[%emt 0:01:10]} c4 {[%emt 0:01:07]} 15. a4 {[%emt 0:10:55]} Qe6 {[%emt 0:07:47]} 16. Nd2 {[%emt 0:07:18]} a5 {[%emt 0:14:26]} 17. Qb5 {[%emt 0:12:49]} Rfc8 {[%emt 0:08:47]} 18. Rfe1 {[%emt 0:04:25]} Ra6 {[%emt 0:22:36]} 19. Qb2 {[%emt 0:02:34]} Rb6 {[%emt 0:00:46]} 20. Qc1 {[%emt 0:01:04]} Rb7 {[%emt 0:01:32]} 21. Bd1 {[%emt 0:00:36]} Rc6 {[%emt 0:01:20]} 22. f3 {[%emt 0:04:15]} Bd3 {[%emt 0:01:17]} 23. Bc2 {[%emt 0:03:07]} Rcb6 {[%emt 0:00:27]} 24. Ra2 {[%emt 0:01:34]} Nh5 {[%emt 0:02:34]} 25. e4 {[%emt 0:03:59]} Nxg3 {[%emt 0:00:38]} 26. hxg3 {[%emt 0:00:39]} Nf6 {[%emt 0:02:41]} 27. exd5 {[%emt 0:02:10]} Qxd5 {[%emt 0:01:08]} 28. Re5 {[%emt 0:00:15]} Qd6 {[%emt 0:03:00]} 29. Bxd3 {[%emt 0:03:03]} cxd3 {[%emt 0:00:02]} 30. Qf1 {[%emt 0:00:34]} Nd7 {[%emt 0:01:55]} 31. Nc4 {[%emt 0:04:02]} Qb8 {[%emt 0:00:57]} 32. Nxb6 {[%emt 0:01:57]} Nxe5 {[%emt 0:00:13]} 33. dxe5 {[%emt 0:00:32]} Rxb6 {[%emt 0:01:56]} 34. Qxd3 {[%emt 0:00:12]} Rb1+ {[%emt 0:01:22]} 35. Kh2 {[%emt 0:01:54]} Qb6 {[%emt 0:00:39]} 36. Rf2 {[%emt 0:03:48]} Re1 {[%emt 0:00:51]} 37. Rf1 {[%emt 0:00:33]} Rxe5 {[%emt 0:00:28]} 38. Rb1 {[%emt 0:00:20]} Qc7 {[%emt 0:00:59]} 39. Qd4 {[%emt 0:00:32]} Re8 {[%emt 0:01:24]} 40. Rb6 {[%emt 0:01:19]} Qe5 {[%emt 0:01:26]} 41. Qxe5 {[%emt 0:01:12]} Rxe5 {[%emt 0:00:02]} 42. Rb5 {[%emt 0:00:29]} Re6 {[%emt 0:00:50]} 43. c4 {[%emt 0:00:19]} Ra6 {[%emt 0:00:19]} 44. c5 {[%emt 0:00:30]} Ra7 {[%emt 0:00:24]} 45. Kg1 {[%emt 0:00:42]} Kg7 {[%emt 0:00:19]} 46. Rb6 {[%emt 0:00:25]} Rc7 {[%emt 0:00:16]} 47. Rb5 {[%emt 0:00:13]} Ra7 {[%emt 0:00:00]} 48. c6 {[%emt 0:00:51]} Rc7 {[%emt 0:00:12]} 49. Rc5 {[%emt 0:00:25]} Kf6 {[%emt 0:00:05]} 50. Kf2 {[%emt 0:00:25]} Ke6 {[%emt 0:00:04]} 51. Ke3 {[%emt 0:00:30]} Kd6 {[%emt 0:00:06]} 52. Rxa5 {[%emt 0:00:30]} Rxc6 {[%emt 0:00:07]} 53. g4 {[%emt 0:00:04]} Rc2 {[%emt 0:03:08]} 54. Ra6+ {[%emt 0:01:04]} Ke5 {[%emt 0:00:07]} 55. Rxh6 {[%emt 0:00:32]} Rxg2 {[%emt 0:00:19]} 56. Rb6 {[%emt 0:00:08]} Ra2 {[%emt 0:00:24]} 57. Rb5+ {[%emt 0:00:02]} Ke6 {[%emt 0:00:33]} 58. a5 {[%emt 0:00:07]} Ra3+ {[%emt 0:00:24]} 59. Ke2 {[%emt 0:00:04]} f6 {[%emt 0:00:13]} 60. Rf5 {[%emt 0:00:13]} Kd7 {[%emt 0:01:53]} 61. Kd2 {[%emt 0:00:27]} Ke7 {[%emt 0:00:44]} 62. Kc2 {[%emt 0:00:09]} Ke6 {[%emt 0:00:30]} 63. Kb2 {[%emt 0:00:10]} Ra4 {[%emt 0:00:30]} 64. Kb3 {[%emt 0:00:11]} Ra1 {[%emt 0:00:02]} 65. Kb4 {[%emt 0:00:10]} Rb1+ {[%emt 0:00:33]} 66. Kc5 {[%emt 0:00:30]} Rb3 {[%emt 0:00:36]} 67. a6 {[%emt 0:00:39]} Rb1 {[%emt 0:00:49]} 68. a7 {[%emt 0:00:46]} 1-0

[Event "1st Bangalore GM-Open-A 2024"]
[Site "Bangalore"]
[Date "2024.01.21"]
[Round "6.21"]
[White "Venkatesh, M.R."]
[Black "Sriram Adarsh Uppala"]
[Result "1/2-1/2"]
[ECO "B22"]
[WhiteElo "2392"]
[BlackElo "1900"]
[Annotator "RC"]
[PlyCount "60"]
[EventDate "2024.01.20"]
[EventType "swiss"]
[EventCountry "IND"]
[SourceTitle "playchess.com"]
[Source "ChessBase"]
[SourceQuality "1"]
[TimeControl "5400+30"]

1. e4 {[%emt 0:00:08]} c5 {[%emt 0:00:09]} 2. c3 {[%emt 0:00:11]} e5 {[%emt 0:00:16]} 3. Nf3 {[%emt 0:01:54]} Nc6 {[%emt 0:00:05]} 4. Bc4 {[%emt 0:02:26]} Nf6 {[%emt 0:00:17]} 5. Qe2 {[%emt 0:02:53]} Bd6 {[%emt 0:01:56]} 6. a4 {[%emt 0:03:44]} O-O {[%emt 0:01:01]} 7. d3 {[%emt 0:07:49]} h6 {[%emt 0:01:25]} 8. g4 {[%emt 0:00:59]} Be7 {[%emt 0:02:38]} 9. g5 {[%emt 0:03:18]} hxg5 {[%emt 0:00:08]} 10. Bxg5 {[%emt 0:03:26]} d5 {[%emt 0:01:57]} 11. exd5 {[%emt 0:00:34]} Nxd5 {[%emt 0:01:07]} 12. Rg1 {[%emt 0:01:27]} Bxg5 {[%emt 0:08:34]} 13. Nxg5 {[%emt 0:02:39]} Bf5 {[%emt 0:00:56]} 14. Bxd5 {[%emt 0:17:51]} Qxd5 {[%emt 0:00:07]} 15. Ne4 {[%emt 0:00:03]} f6 {[%emt 0:05:39]} 16. Nbd2 {[%emt 0:03:28]} Rad8 {[%emt 0:02:42]} 17. Rg3 {[%emt 0:00:07]} Bxe4 {[%emt 0:02:55]} 18. dxe4 {[%emt 0:01:27]} Qe6 {[%emt 0:00:38]} 19. Qc4 {[%emt 0:02:43]} Qxc4 {[%emt 0:02:34]} 20. Nxc4 {[%emt 0:00:03]} Kf7 {[%emt 0:00:10]} 21. Rd1 {[%emt 0:01:20]} Rxd1+ {[%emt 0:01:20]} 22. Kxd1 {[%emt 0:00:02]} Rd8+ {[%emt 0:00:07]} 23. Ke2 {[%emt 0:00:46]} Ne7 {[%emt 0:02:44]} 24. Rd3 {[%emt 0:04:44]} Rxd3 {[%emt 0:00:42]} 25. Kxd3 {[%emt 0:00:02]} Ke6 {[%emt 0:00:12]} 26. Na3 {[%emt 0:03:06]} Nc8 {[%emt 0:02:05]} 27. Nb5 {[%emt 0:04:31]} Kd7 {[%emt 0:01:00]} 28. Ke3 {[%emt 0:06:21]} Nb6 {[%emt 0:00:29]} 29. b3 {[%emt 0:00:51]} a6 {[%emt 0:16:55]} 30. Na3 {[%emt 0:00:12]} Nc8 {[%emt 0:00:42]} 1/2-1/2

[Event "1st Bangalore GM-Open-A 2024"]
[Site "Bangalore"]
[Date "2024.01.21"]
[Round "6.22"]
[White "Ritviz, Parab"]
[Black "Mukund Hemant Agarwal"]
[Result "1-0"]
[ECO "A08"]
[WhiteElo "2391"]
[BlackElo "1852"]
[Annotator "RC"]
[PlyCount "59"]
[EventDate "2024.01.20"]
[EventType "swiss"]
[EventCountry "IND"]
[SourceTitle "playchess.com"]
[Source "ChessBase"]
[SourceQuality "1"]
[TimeControl "5400+30"]

1. g3 {[%emt 0:00:24]} Nf6 {[%emt 0:01:14]} 2. Bg2 {[%emt 0:00:11]} d5 {[%emt 0:00:16]} 3. Nf3 {[%emt 0:00:14]} e6 {[%emt 0:00:12]} 4. O-O {[%emt 0:00:12]} c5 {[%emt 0:00:02]} 5. d3 {[%emt 0:00:22]} Nc6 {[%emt 0:00:36]} 6. Nbd2 {[%emt 0:00:09]} e5 {[%emt 0:04:08]} 7. e4 {[%emt 0:03:16]} Be7 {[%emt 0:02:39]} 8. exd5 {[%emt 0:04:42]} Nxd5 {[%emt 0:00:19]} 9. Re1 {[%emt 0:00:41]} f6 {[%emt 0:00:38]} 10. c3 {[%emt 0:19:37]} Nb6 {[%emt 0:11:02]} 11. a4 {[%emt 0:09:22]} Qxd3 {[%emt 0:14:29]} 12. a5 {[%emt 0:00:12]} Nd7 {[%emt 0:00:21]} 13. a6 {[%emt 0:06:39]} Qd6 {[%emt 0:23:00]} 14. Nh4 {[%emt 0:10:07]} g6 {[%emt 0:02:43]} 15. Qb3 {[%emt 0:03:33]} Qc7 {[%emt 0:10:18]} 16. Ne4 {[%emt 0:07:44]} Nb6 {[%emt 0:07:53]} 17. axb7 {[%emt 0:04:17]} Qxb7 {[%emt 0:00:43]} 18. Bh6 {[%emt 0:00:26]} c4 {[%emt 0:05:25]} 19. Qd1 {[%emt 0:02:49]} Kf7 {[%emt 0:02:52]} 20. Nd6+ {[%emt 0:03:11]} Bxd6 {[%emt 0:00:02]} 21. Qxd6 {[%emt 0:00:02]} Bd7 {[%emt 0:00:31]} 22. f4 {[%emt 0:06:24]} e4 {[%emt 0:06:23]} 23. Rxe4 {[%emt 0:03:34]} Rhe8 {[%emt 0:01:08]} 24. Rae1 {[%emt 0:00:27]} Rxe4 {[%emt 0:00:59]} 25. Rxe4 {[%emt 0:00:09]} Qb8 {[%emt 0:00:53]} 26. Qc5 {[%emt 0:00:58]} Qd8 {[%emt 0:02:20]} 27. Re1 {[%emt 0:00:46]} Ne7 {[%emt 0:02:20]} 28. Bxa8 {[%emt 0:00:09]} Nxa8 {[%emt 0:00:33]} 29. Qxc4+ {[%emt 0:00:07]} Ke8 {[%emt 0:00:24]} 30. Qg8# {[%emt 0:00:06]} 1-0

[Event "1st Bangalore GM-Open-A 2024"]
[Site "Bangalore"]
[Date "2024.01.21"]
[Round "6.23"]
[White "Ghosh, Diptayan"]
[Black "Wagh Suyog"]
[Result "1-0"]
[ECO "A17"]
[WhiteElo "2568"]
[BlackElo "2266"]
[Annotator "TA"]
[PlyCount "105"]
[EventDate "2024.01.20"]
[EventType "swiss"]
[EventCountry "IND"]
[SourceTitle "playchess.com"]
[Source "ChessBase"]
[SourceQuality "1"]
[TimeControl "5400+30"]

{[%evp 9,105,0,12,8,23,22,18,13,25,20,21,18,27,7,7,10,35,30,37,30,43,31,21,24,18,18,21,19,18,16,18,8,29,16,27,0,-4,0,-10,-42,0,-7,42,0,0,0,0,0,0,0,0,-30,-22,-42,-56,-50,0,-14,0,-21,0,0,0,0,0,-41,0,0,0,0,0,0,0,0,0,0,22,0,100,102,90,65,147,44,137,58,115,113,236,237,1124,223,29984,29985,29985,29986,29997,29998]} 1. Nf3 {[%emt 0:00:25]} d5 {[%emt 0:10:47]} 2. e3 {[%emt 0:00:11]} Nf6 {[%emt 0:02:09]} 3. c4 {[%emt 0:00:09]} e6 {[%emt 0:01:02]} 4. Nc3 {[%emt 0:00:17]} Bd6 {[%emt 0:01:08]} 5. b3 {[%emt 0:01:14]} b6 {[%emt 0:04:05]} 6. Bb2 {[%emt 0:00:55]} a6 {[%emt 0:04:46]} 7. g3 {[%emt 0:11:45]} O-O {[%emt 0:00:38]} 8. cxd5 {[%emt 0:02:04] The position is equal.} exd5 {[%emt 0:00:08]} 9. Bg2 {[%emt 0:00:03]} Bb7 {[%emt 0:01:47]} 10. O-O {[%emt 0:00:07]} Re8 {[%emt 0:00:30]} 11. Rc1 {[%emt 0:02:07]} Nbd7 {[%emt 0:03:05]} 12. Re1 {[%emt 0:02:13]} Nc5 {[%emt 0:04:36]} 13. d3 {[%emt 0:01:47][%cal Bd2d3,Bd3d4][%mdl 32]} Bf8 {[%emt 0:07:27]} 14. Ne2 {[%emt 0:04:38]} Ne6 {[%emt 0:03:47]} 15. Rc2 {[%emt 0:01:17]} c5 {[%emt 0:05:00]} 16. Nd2 {[%emt 0:07:59]} Rc8 {[%emt 0:13:30]} 17. Qa1 {[%emt 0:04:04]} Be7 {[%emt 0:01:40]} 18. d4 {[%emt 0:06:50]} Rc7 {[%emt 0:04:38]} 19. Rd1 {[%emt 0:04:43]} Qa8 {[%emt 0:00:37]} 20. h4 {[%emt 0:08:03]} h5 {[%emt 0:03:32]} 21. Rcc1 {[%emt 0:02:40]} (21. a4 $5 {[%cal Ra4a5]}) 21... Rec8 {[%emt 0:00:21]} 22. dxc5 {[%emt 0:01:47]} bxc5 {[%emt 0:00:29]} 23. Qb1 {[%emt 0:01:22]} Ng4 {[%emt 0:00:55] Dodges Be5} 24. Rf1 {[%emt 0:12:06]} g6 {[%emt 0:02:47]} 25. Bh3 {[%emt 0:02:02]} Kh7 {[%emt 0:03:26]} (25... d4 $11) 26. Nf4 {[%emt 0:02:34]} Nxf4 {[%emt 0:07:27]} 27. exf4 {[%emt 0:00:01]} f5 {[%emt 0:01:06]} 28. Rfe1 {[%emt 0:01:31]} d4 {[%emt 0:00:56]} 29. Qd3 {[%emt 0:01:50]} Bd5 {[%emt 0:03:34] Wards off Re6} 30. Re2 {[%emt 0:02:29]} Bf6 {[%emt 0:00:26]} 31. Rce1 {[%emt 0:00:16]} Qc6 {[%emt 0:00:59]} 32. Nc4 {[%emt 0:00:39]} Rd8 {[%emt 0:05:02]} (32... Rb8 $1 $15) 33. Bc1 {[%emt 0:02:01]} Rdd7 {[%emt 0:01:03]} 34. Bd2 {[%emt 0:02:47]} Re7 {[%emt 0:00:20]} (34... Ne3 $5 35. Bxe3 (35. fxe3 Be4 $17 {[%mdl 64] Trapped Piece}) 35... Be4 $15) 35. Na5 {[%emt 0:00:54]} Qa8 {[%emt 0:01:08]} 36. Rxe7+ {[%emt 0:00:36]} Bxe7 {[%emt 0:01:23]} 37. Bf1 {[%emt 0:00:39]} Ra7 {[%emt 0:00:08]} 38. b4 {[%emt 0:00:56]} Be4 {[%emt 0:01:03]} 39. Qb3 {[%emt 0:00:42][%cal Oe1e4] [#] And now Rxe4! would win.} Bf8 {[%emt 0:01:25][%cal Od4d3]} 40. bxc5 {[%emt 0:02:29]} Bxc5 {[%emt 0:00:08][%cal Od4d3] ...d3! is the strong threat.} 41. Rc1 $1 {[%emt 0:00:28] Against d3} Qf8 {[%emt 0:01:02][%cal Od4d3] White must now prevent ...d3!} 42. Bd3 {[%emt 0:00:42]} Nf6 {[%emt 0:00:30]} 43. Qc4 {[%emt 0:01:38]} Bb6 {[%emt 0:00:19]} (43... Ba3 $11 44. Rc2 Qf7 45. Bxe4 (45. Qxd4 $2 Rd7 $19) 45... Nxe4) 44. Nc6 $16 {[%emt 0:01:07]} Bd5 {[%emt 0:00:42]} 45. Qa4 {[%emt 0:00:40]} Ra8 {[%emt 0:00:37]} (45... Qe8 $14 46. Qb4 (46. Bxa6 Qe4 47. Kf1 Qh1+ 48. Ke2 Qf3+ 49. Ke1 d3 50. Bxd3 Bxf2+ 51. Kf1 Bxg3+ {[%mdl 64] Discovered Attack} 52. Kg1 Qh1#) 46... Rb7) 46. Nxd4 {[%emt 0:02:02] White is much more active.} (46. Bxa6 $2 Qe8 47. Qc2 Rxa6 $19) (46. Bc4 $16) 46... Kh6 {[%emt 0:00:49] [#]} (46... Qd8 $14) 47. Ba5 {[%emt 0:00:56]} (47. Bxa6 $2 {too greedy.} Bxd4 48. Qxd4 Rxa6 $19) (47. Be3 $1 $16 {[%cal Od4f5] aiming for Nxf5+!} Qd8 48. Bc4 (48. Bxa6 $2 Qe7 $19)) 47... Bxa5 {[%emt 0:00:18]} (47... Bc5 $14) 48. Qxa5 {[%emt 0:00:01]} Qd6 {[%emt 0:00:43] A mistake that costs the game.} (48... Rb8 $16) 49. Bxf5 $1 $18 {[%emt 0:00:48] Strongly threatening Bc2.} Bb7 $2 {[%emt 0:00:26]} (49... Rb8 50. a3 Qd8 51. Qxd8 (51. Qxa6 gxf5 52. Nxf5+ Kg6 $11) 51... Rxd8) 50. Bb1 $2 {[%emt 0:01:24]} (50. Bxg6 Kxg6 51. Rc7) 50... Qxd4 $2 {[%emt 0:00:30]} (50... Qd5 $18 51. Qxd5 Bxd5) 51. Qg5+ {[%emt 0:00:11] White mates.} Kg7 {[%emt 0:00:04]} 52. Rc7+ {[%emt 0:00:36]} ({Not} 52. Bxg6 Kf8 $11) 52... Kf8 {[%emt 0:00:13]} 53. Qh6+ {[%emt 0:00:04] An entertaining game by Ghosh.   Weighted Error Value: White=0.24 (precise) /Black=0.28 (precise)} 1-0

[Event "1st Bangalore GM-Open-A 2024"]
[Site "Bangalore"]
[Date "2024.01.21"]
[Round "6.24"]
[White "Goutham Krishna H"]
[Black "Lalit Babu M R"]
[Result "1/2-1/2"]
[ECO "A33"]
[WhiteElo "2288"]
[BlackElo "2525"]
[Annotator "TA"]
[PlyCount "88"]
[EventDate "2024.01.20"]
[EventType "swiss"]
[EventCountry "IND"]
[SourceTitle "playchess.com"]
[Source "ChessBase"]
[SourceQuality "1"]
[TimeControl "5400+30"]

{[%evp 11,88,9,2,7,18,-5,23,23,8,18,25,0,0,0,17,0,0,0,4,0,0,0,31,31,47,21,79,79,79,79,79,79,79,79,79,79,83,83,149,150,149,148,150,80,88,92,93,91,82,92,91,79,87,68,123,88,91,0,0,0,0,0,0,0,0,0,0,0,0,0,0,0,0,0,0,0,0,0,0]} 1. c4 {[%emt 0:02:15]} Nf6 {[%emt 0:00:38]} 2. Nf3 {[%emt 0:00:28]} e6 {[%emt 0:00:06]} 3. d4 {[%emt 0:00:21]} c5 {[%emt 0:00:04]} 4. Nc3 {[%emt 0:00:28]} cxd4 {[%emt 0:00:05]} 5. Nxd4 {[%emt 0:00:02]} Nc6 {[%emt 0:00:04]} 6. a3 {[%emt 0:00:24]} Bc5 {[%emt 0:01:37]} 7. Nb3 {[%emt 0:00:18]} Bb6 {[%emt 0:00:03]} 8. e4 {[%emt 0:01:39]} h6 {[%emt 0:14:00]} (8... d5 {is interesting.} 9. cxd5 exd5 10. exd5 Ng4) 9. Be2 {[%emt 0:14:25] White has an edge.} O-O {[%emt 0:01:14]} 10. O-O {[%emt 0:01:23]} d6 {[%emt 0:00:42]} 11. Kh1 {[%emt 0:01:45]} (11. Qd3 $5) 11... e5 {[%emt 0:08:53]} 12. Qd3 {[%emt 0:04:58]} Be6 {[%emt 0:26:37]} 13. Be3 {[%emt 0:10:26]} Bxe3 {[%emt 0:05:41]} 14. Qxe3 {[%emt 0:00:03]} Rc8 {[%emt 0:01:26]} 15. Rfd1 {[%emt 0:06:13]} a6 {[%emt 0:01:39][%cal Ob7b5] Dodges Nb5} 16. Rac1 {[%emt 0:01:35]} Re8 {[%emt 0:09:21]} (16... Ne7 $5 {[%cal Re6c4]}) 17. f3 {[%emt 0:06:27]} Re7 {[%emt 0:02:26]} 18. Na4 {[%emt 0:07:04]} Na5 {[%emt 0:08:01]} (18... Rb8 $11 {keeps the balance.}) 19. Nb6 $16 {[%emt 0:02:45]} Rc6 {[%emt 0:00:15] Threatens to win with ...Nxb3.} 20. Nxa5 {[%emt 0:00:16]} Qxb6 {[%emt 0:00:12]} 21. Qxb6 {[%emt 0:00:58]} Rxb6 {[%emt 0:00:03]} 22. b4 {[%emt 0:00:21]} Rc7 {[%emt 0:00:08]} 23. Rd2 {[%emt 0:01:40]} Kf8 {[%emt 0:00:39]} 24. g4 {[%emt 0:01:21]} Ke7 {[%emt 0:00:50] [#]} (24... h5 $142) 25. Rdc2 $1 {[%emt 0:00:41]} Bd7 {[%emt 0:02:51] [#]} 26. c5 $1 {[%emt 0:05:18]} dxc5 {[%emt 0:00:19]} 27. bxc5 {[%emt 0:00:01]} (27. Rxc5 $142 Rxc5 28. Rxc5) 27... Ba4 {[%emt 0:02:23]} (27... Re6 $2 28. Bc4 $18) 28. cxb6 {[%emt 0:00:53]} Rxc2 {[%emt 0:00:04]} 29. Rxc2 {[%emt 0:00:11]} Bxc2 {[%emt 0:00:03]} 30. Nxb7 {[%emt 0:00:51][%mdl 4096] Endgame Nc5 would be deadly. KBN-KBN} Nd7 {[%emt 0:00:21] Dodges Nc5} 31. Bxa6 {[%emt 0:01:14]} Nxb6 {[%emt 0:00:26]} 32. Kg2 {[%emt 0:01:22]} g6 {[%emt 0:00:38]} (32... Na4 $14) 33. Kg3 {[%emt 0:02:20]} Na4 {[%emt 0:01:04]} 34. Bb5 {[%emt 0:01:00]} ({White should play} 34. Na5 $16) 34... Nc3 $11 {[%emt 0:00:15] The position is equal.} 35. Bc4 {[%emt 0:00:04]} Nb1 {[%emt 0:00:21]} 36. a4 {[%emt 0:01:44]} Bxa4 {[%emt 0:00:53]} 37. Nc5 {[%emt 0:00:11]} Bd1 {[%emt 0:01:10]} 38. Bb3 {[%emt 0:00:45]} Bxb3 {[%emt 0:01:03]} 39. Nxb3 {[%emt 0:00:01] KN-KN} Nc3 {[%emt 0:00:16]} 40. Kf2 {[%emt 0:00:06]} Nb5 {[%emt 0:01:14]} 41. h4 {[%emt 0:00:21]} Nc7 {[%emt 0:00:31]} 42. Nc5 {[%emt 0:00:12]} Kd6 {[%emt 0:00:54]} 43. Nd3 {[%emt 0:00:02]} Ke6 {[%emt 0:01:44]} 44. Nc5+ {[%emt 0:00:08]} Kd6 {[%emt 0:00:25] White really could win this.   Weighted Error Value: White=0.09 (flawless) /Black=0.09 (flawless)} 1/2-1/2

[Event "1st Bangalore GM-Open-A 2024"]
[Site "Bangalore"]
[Date "2024.01.21"]
[Round "6.25"]
[White "Savchenko, Boris"]
[Black "Rosh Jain"]
[Result "1-0"]
[ECO "B46"]
[WhiteElo "2489"]
[BlackElo "2221"]
[Annotator "RC"]
[PlyCount "75"]
[EventDate "2024.01.20"]
[EventType "swiss"]
[EventCountry "IND"]
[SourceTitle "playchess.com"]
[Source "ChessBase"]
[SourceQuality "1"]
[TimeControl "5400+30"]

1. e4 {[%emt 0:00:06]} c5 {[%emt 0:00:08]} 2. Nc3 {[%emt 0:00:39]} e6 {[%emt 0:00:42]} 3. Nf3 {[%emt 0:00:39]} Nc6 {[%emt 0:00:12]} 4. d4 {[%emt 0:00:07]} cxd4 {[%emt 0:00:07]} 5. Nxd4 {[%emt 0:00:03]} a6 {[%emt 0:00:38]} 6. Nxc6 {[%emt 0:01:15]} bxc6 {[%emt 0:00:08]} 7. Bd3 {[%emt 0:00:07]} d5 {[%emt 0:00:56]} 8. Qe2 {[%emt 0:01:11]} Bb7 {[%emt 0:07:31]} 9. O-O {[%emt 0:02:44]} Nf6 {[%emt 0:02:16]} 10. b3 {[%emt 0:00:31]} Be7 {[%emt 0:05:01]} 11. Bb2 {[%emt 0:00:19]} O-O {[%emt 0:02:55]} 12. Na4 {[%emt 0:03:05]} c5 {[%emt 0:10:28]} 13. exd5 {[%emt 0:19:01]} exd5 {[%emt 0:15:30]} 14. Qe5 {[%emt 0:02:15]} Bd6 {[%emt 0:09:03]} 15. Qf5 {[%emt 0:01:19]} d4 {[%emt 0:07:24]} 16. Ba3 {[%emt 0:07:10]} Rc8 {[%emt 0:13:33]} 17. c3 {[%emt 0:10:16]} c4 {[%emt 0:07:17]} 18. Bxd6 {[%emt 0:00:19]} Qxd6 {[%emt 0:00:10]} 19. Bxc4 {[%emt 0:00:18]} dxc3 {[%emt 0:00:11]} 20. Rfd1 {[%emt 0:06:57]} Qc6 {[%emt 0:01:36]} 21. f3 {[%emt 0:00:29]} Ne8 {[%emt 0:09:05]} 22. Qf4 {[%emt 0:02:46]} c2 {[%emt 0:02:48]} 23. Rd2 {[%emt 0:00:25]} Qg6 {[%emt 0:01:31]} 24. Rc1 {[%emt 0:00:26]} Nf6 {[%emt 0:00:06]} 25. Rcxc2 {[%emt 0:03:15]} Rfe8 {[%emt 0:02:52]} 26. Bd3 {[%emt 0:02:47]} Qh5 {[%emt 0:00:48]} 27. Rxc8 {[%emt 0:00:28]} Rxc8 {[%emt 0:00:07]} 28. Rc2 {[%emt 0:00:44]} Qd5 {[%emt 0:00:33]} 29. Rxc8+ {[%emt 0:00:42]} Bxc8 {[%emt 0:00:05]} 30. Qe3 {[%emt 0:01:08]} Bb7 {[%emt 0:00:16]} 31. Nc5 {[%emt 0:00:27]} Bc6 {[%emt 0:01:16]} 32. Nxa6 {[%emt 0:00:58]} Qd6 {[%emt 0:00:43]} 33. Nc5 {[%emt 0:05:04]} Nd5 {[%emt 0:00:28]} 34. Qd4 {[%emt 0:00:19]} Qh6 {[%emt 0:00:10]} 35. Be4 {[%emt 0:01:02]} Qd6 {[%emt 0:00:52]} 36. Nd3 {[%emt 0:00:57]} g6 {[%emt 0:00:23]} 37. Kf2 {[%emt 0:00:36]} Qd8 {[%emt 0:00:18]} 38. Bxd5 {[%emt 0:00:08]} 1-0